bitfinex/quotes_SOLUSD_20241117
["timestamp","ask_amount","ask_price","bid_price","bid_amount"]
[1731881603681,25.36758431,234.09,234.01,23.776884]
[1731881603890,25.36758431,234.09,234.03,23.776884]
[1731881604096,22.86758431,234.09,234.03,23.776884]
[1731881604475,16.83938431,234.1,234.03,23.776884]
[1731881604710,21.11108431,234.1,234.03,23.776884]
[1731881605582,21.11108431,234.1,234.03,28.049684]
[1731881605782,16.83938431,234.1,234.03,28.049684]
[1731881606281,16.83938431,234.08,234.03,28.049684]
[1731881606480,16.83938431,234.08,234.03,23.776884]
[1731881607484,16.83938431,234.04,233.99,23.776884]
[1731881607691,16.83938431,234.04,233.96,16.83938431]
[1731881607887,16.83938431,234.04,233.97,0.09367462]
[1731881608086,8.5282,234.14,234.04,0.09367462]
[1731881608288,8.5282,234.14,234.07,16.83938431]
[1731881608612,16.83938431,234.13,234.05,16.83938431]
[1731881608986,16.83938431,234.13,234.06,23.87055862]
[1731881609186,17.30126661,234.15,234.07,16.83938431]
[1731881609385,17.30126661,234.15,234.08,23.776884]
[1731881609601,0.4618823,234.15,234.1,23.776884]
[1731881611408,17.30126661,234.15,234.1,23.776884]
[1731881611710,16.83938431,234.11,234.03,4.2728]
[1731881612008,16.83938431,234.09,234.02,16.83938431]
[1731881612178,16.83938431,234.09,234.01,4.2732]
[1731881612377,16.83938431,234.07,234.01,4.2732]
[1731881612610,16.83938431,234.07,233.99,14.9573]
[1731881612784,16.83938431,234.05,233.99,14.9573]
[1731881613114,4.2709,234.14,234.05,0.09367462]
[1731881613299,4.2709,234.14,234.07,16.83938431]
[1731881613300,16.83938431,234.14,234.07,16.83938431]
[1731881614089,0.4618823,234.15,234.09,16.83938431]
[1731881614293,0.4618823,234.15,234.1,23.776884]
[1731881614806,0.4618823,234.15,234.12,23.776884]
[1731881615384,0.4618823,234.15,234.14,23.99604862]
[1731881615605,0.4618823,234.15,234.14,40.96092293]
[1731881616318,0.4618823,234.15,234.14,61.92132293]
[1731881616496,0.4618823,234.15,234.14,61.82132293]
[1731881616691,0.4618823,234.15,234.14,66.09222293]
[1731881617693,0.4618823,234.15,234.14,42.31533893]
[1731881620214,0.4618823,234.15,234.14,66.09222293]
[1731881620622,0.4618823,234.15,234.14,49.25283862]
[1731881620822,0.4618823,234.15,234.14,66.09222293]
[1731881621495,0.4618823,234.15,234.14,66.19222293]
[1731881622516,0.4618823,234.15,234.14,66.09222293]
[1731881623820,0.4618823,234.15,234.14,41.97068431]
[1731881624208,0.4618823,234.15,234.14,42.06435893]
[1731881625003,0.4618823,234.15,234.14,42.31533893]
[1731881625204,0.4618823,234.15,234.14,66.09222293]
[1731881625618,0.4618823,234.15,234.14,49.25283862]
[1731881625804,0.4618823,234.15,234.14,66.09222293]
[1731881628318,10.50043971,234.31,234.15,24.12153862]
[1731881628630,10.50043971,234.29,234.23,0.12549]
[1731881629101,10.50043971,234.27,234.2,14.9439]
[1731881630018,10.50043971,234.27,234.2,21.17463971]
[1731881630219,10.50043971,234.24,234.2,10.6742]
[1731881630413,10.50043971,234.24,234.2,10.1742]
[1731881631114,10.50043971,234.25,234.2,10.1742]
[1731881631316,10.50043971,234.26,234.2,10.1742]
[1731881631938,8.165,234.32,234.2,10.1742]
[1731881632128,10.50043971,234.28,234.21,10.50043971]
[1731881632429,10.50043971,234.27,234.2,14.444]
[1731881632629,10.50043971,234.27,234.2,24.94443971]
[1731881633404,10.50043971,234.26,234.2,14.444]
[1731881633807,10.50043971,234.27,234.2,24.94443971]
[1731881634009,10.50043971,234.28,234.2,24.94443971]
[1731881634514,14.76873971,234.29,234.21,10.50043971]
[1731881635033,10.50043971,234.28,234.2,20.67463971]
[1731881635231,10.50043971,234.28,234.21,23.776884]
[1731881635533,14.76873971,234.29,234.21,34.27732371]
[1731881635742,10.50043971,234.28,234.21,28.046384]
[1731881636208,10.50043971,234.28,234.21,38.54682371]
[1731881636532,14.76843971,234.3,234.22,10.50043971]
[1731881637221,10.50043971,234.29,234.22,10.50043971]
[1731881637430,10.50043971,234.28,234.21,49.22092371]
[1731881638513,10.50043971,234.29,234.22,14.76973971]
[1731881638713,4.268,234.3,234.23,10.50043971]
[1731881638935,10.50043971,234.29,234.22,14.76973971]
[1731881640234,14.76843971,234.3,234.23,10.50043971]
[1731881640534,4.268,234.3,234.24,10.50043971]
[1731881641961,10.50043971,234.31,234.24,10.50043971]
[1731881642252,10.50043971,234.31,234.24,14.76943971]
[1731881642458,14.76793971,234.33,234.26,10.50043971]
[1731881643242,20.0,234.36,234.28,10.50043971]
[1731881643439,10.50043971,234.35,234.28,14.76873971]
[1731881643648,10.50043971,234.34,234.28,14.76873971]
[1731881643852,10.50043971,234.32,234.26,10.50043971]
[1731881644037,10.50043971,234.32,234.25,14.76913971]
[1731881644239,10.50043971,234.33,234.26,10.50043971]
[1731881644450,10.50043971,234.34,234.27,10.50043971]
[1731881644959,10.50043971,234.36,234.29,10.50043971]
[1731881645137,14.76723971,234.37,234.3,10.50043971]
[1731881645741,0.4618823,234.38,234.33,10.50043971]
[1731881646441,0.4618823,234.38,234.34,10.50043971]
[1731881646792,0.4618823,234.38,234.36,10.50043971]
[1731881647445,0.4618823,234.38,234.35,10.50043971]
[1731881647954,0.4618823,234.38,234.36,4.2669]
[1731881648370,0.4618823,234.38,234.34,4.2672]
[1731881648566,10.96232201,234.38,234.31,10.6694]
[1731881648866,10.50043971,234.34,234.31,10.6694]
[1731881649042,10.50043971,234.34,234.29,4.2681]
[1731881649451,0.4618823,234.38,234.33,10.50043971]
[1731881649644,0.4618823,234.38,234.34,10.50043971]
[1731881649849,0.4618823,234.38,234.35,4.2671]
[1731881650731,0.4618823,234.38,234.33,10.6684]
[1731881650945,10.50043971,234.36,234.28,10.6707]
[1731881651164,10.50043971,234.36,234.29,10.50043971]
[1731881651337,10.50043971,234.35,234.28,10.6707]
[1731881651531,10.50043971,234.35,234.28,21.17113971]
[1731881651759,10.50043971,234.36,234.29,14.76853971]
[1731881652137,10.50043971,234.35,234.29,4.2681]
[1731881652347,0.4618823,234.38,234.31,0.09367462]
[1731881652563,0.4618823,234.38,234.3,10.50043971]
[1731881652564,0.4618823,234.38,234.3,0.12549]
[1731881652740,0.4618823,234.38,234.31,10.50043971]
[1731881653163,0.4618823,234.38,234.3,0.12549]
[1731881653354,0.4618823,234.38,234.31,10.50043971]
[1731881653551,0.4618823,234.38,234.32,4.2676]
[1731881654459,10.50043971,234.37,234.3,4.2679]
[1731881655358,10.50043971,234.37,234.29,10.6705]
[1731881655560,10.50043971,234.35,234.28,10.50043971]
[1731881655760,10.50043971,234.37,234.3,10.50043971]
[1731881656072,0.4618823,234.38,234.3,10.50043971]
[1731881656252,0.4618823,234.38,234.32,10.50043971]
[1731881656647,4.7284823,234.38,234.3,10.50043971]
[1731881656962,0.4618823,234.38,234.32,10.50043971]
[1731881657268,0.4618823,234.38,234.27,0.12549]
[1731881657269,0.4618823,234.38,234.36,10.50043971]
[1731881657851,0.4618823,234.38,234.36,4.2668]
[1731881658172,0.4618823,234.38,234.34,25.43583971]
[1731881659159,4.2667,234.37,234.32,10.50043971]
[1731881659345,4.2667,234.37,234.3,10.50043971]
[1731881660325,14.76713971,234.37,234.27,4.2685]
[1731881660540,14.76713971,234.37,234.27,14.76893971]
[1731881660747,14.76713971,234.37,234.29,10.50043971]
[1731881661419,0.4618823,234.38,234.31,10.50043971]
[1731881661722,0.4618823,234.38,234.33,10.50043971]
[1731881662742,4.7284823,234.38,234.33,10.50043971]
[1731881663132,4.7284823,234.38,234.31,14.76813971]
[1731881663519,0.4618823,234.38,234.31,25.43773971]
[1731881663723,0.4618823,234.38,234.33,10.50043971]
[1731881663940,0.4618823,234.38,234.37,64.89797833]
[1731881664948,0.4618823,234.38,234.37,69.16467833]
[1731881665839,1.0,234.55,234.45,0.34465462]
[1731881666042,1.0,234.55,234.54,10.50043971]
[1731881666219,1.0,234.55,234.46,0.34465462]
[1731881666541,1.0,234.55,234.54,16.75355659]
[1731881666842,1.0,234.55,234.54,21.11083121]
[1731881667043,1.0,234.55,234.54,45.13869521]
[1731881668034,1.0,234.55,234.54,21.14264659]
[1731881668223,1.0,234.55,234.54,21.01715659]
[1731881668447,1.0,234.55,234.54,21.14264659]
[1731881668645,1.0,234.55,234.54,45.13869521]
[1731881668950,1.0,234.55,234.54,21.14264659]
[1731881669837,1.0,234.55,234.54,45.13869521]
[1731881671039,1.0,234.55,234.54,21.14264659]
[1731881671431,1.0,234.55,234.54,21.01715659]
[1731881671747,1.0,234.55,234.54,4.2636]
[1731881671966,1.0,234.55,234.54,21.01715659]
[1731881673634,1.0,234.55,234.54,21.36181121]
[1731881679053,1.0,234.55,234.54,45.13869521]
[1731881679350,38.42075659,234.71,234.55,24.22153862]
[1731881679551,38.42075659,234.71,234.61,17.09821121]
[1731881680136,38.42075659,234.71,234.61,16.97272121]
[1731881680337,38.42075659,234.71,234.56,0.25098]
[1731881680338,16.75355659,234.67,234.56,0.25098]
[1731881680563,16.75355659,234.67,234.6,16.75355659]
[1731881680764,4.2612,234.68,234.6,16.75355659]
[1731881680962,12.6910823,234.62,234.48,43.2048]
[1731881681135,29.44463889,234.62,234.54,16.75355659]
[1731881681337,8.4288823,234.62,234.56,16.75355659]
[1731881681636,8.4288823,234.62,234.54,16.75355659]
[1731881681637,29.44473889,234.62,234.54,16.75355659]
[1731881682034,16.75355659,234.55,234.43,10.664]
[1731881682236,16.75355659,234.53,234.44,16.75355659]
[1731881682452,16.75355659,234.53,234.46,16.75355659]
[1731881682649,16.75355659,234.55,234.46,16.75355659]
[1731881682834,19.899,234.61,234.43,10.664]
[1731881682835,16.75355659,234.59,234.52,16.75355659]
[1731881683036,4.2625,234.6,234.52,16.75355659]
[1731881683760,36.55255659,234.61,234.48,10.6617]
[1731881683761,19.799,234.61,234.54,16.75355659]
[1731881685347,40.81495659,234.61,234.52,16.75355659]
[1731881689964,8.4288823,234.62,234.51,4.2641]
[1731881689965,0.4618823,234.62,234.6,16.75355659]
[1731881690266,0.4618823,234.62,234.59,10.46652054]
[1731881691064,0.4618823,234.62,234.57,25.38732054]
[1731881691270,0.4618823,234.62,234.57,21.12422054]
[1731881691482,0.4618823,234.62,234.57,25.38732054]
[1731881692351,0.4618823,234.62,234.57,31.66948699]
[1731881693152,0.4618823,234.62,234.59,16.74868699]
[1731881695552,0.4618823,234.62,234.6,14.9189]
[1731881695967,0.4618823,234.62,234.61,16.74868699]
[1731881698275,0.4618823,234.62,234.6,10.6564]
[1731881698578,0.4618823,234.62,234.57,16.74868699]
[1731881699773,0.4618823,234.62,234.57,21.01168699]
[1731881700481,0.4618823,234.62,234.59,16.74868699]
[1731881701982,0.4618823,234.62,234.61,40.87022561]
[1731881702959,0.4618823,234.62,234.61,16.74868699]
[1731881704086,0.4618823,234.62,234.61,21.01098699]
[1731881706777,0.4618823,234.62,234.61,21.35564161]
[1731881707173,16.71056929,234.75,234.61,21.35564161]
[1731881707385,21.00828699,234.76,234.69,16.74868699]
[1731881708479,16.74868699,234.75,234.68,16.74868699]
[1731881708669,21.00828699,234.76,234.68,16.74868699]
[1731881708871,4.2594,234.78,234.73,16.74868699]
[1731881709061,8.755,234.8,234.74,16.74868699]
[1731881709373,13.014,234.8,234.73,16.74868699]
[1731881709988,29.76268699,234.8,234.72,16.74868699]
[1731881710463,29.76268699,234.8,234.72,21.00898699]
[1731881710858,16.74868699,234.76,234.68,16.74868699]
[1731881711163,16.74868699,234.74,234.65,21.01028699]
[1731881711368,16.74868699,234.75,234.68,16.74868699]
[1731881712485,4.26,234.74,234.68,16.74868699]
[1731881712679,21.00868699,234.74,234.67,16.74868699]
[1731881713081,4.26,234.74,234.68,16.74868699]
[1731881713278,4.26,234.74,234.69,16.74868699]
[1731881714391,14.71825135,234.74,234.67,10.45825135]
[1731881714581,0.2,234.7,234.54,21.3183]
[1731881714775,20.0,234.71,234.54,21.3183]
[1731881714999,28.8364,234.72,234.65,10.45825135]
[1731881715178,28.8364,234.72,234.55,36.33267462]
[1731881715361,28.8364,234.72,234.55,36.43267462]
[1731881715689,4.26,234.74,234.69,10.45825135]
[1731881715880,4.26,234.74,234.68,10.45825135]
[1731881716782,10.45825135,234.72,234.65,10.45825135]
[1731881717086,10.45825135,234.7,234.63,10.45825135]
[1731881717286,10.45825135,234.71,234.64,10.45825135]
[1731881717590,10.45825135,234.73,234.62,14.9176]
[1731881717886,10.45825135,234.73,234.65,10.45825135]
[1731881718262,4.26,234.74,234.66,10.45825135]
[1731881718490,14.71825135,234.74,234.67,10.45825135]
[1731881718680,10.45825135,234.73,234.66,10.45825135]
[1731881719184,14.71825135,234.74,234.67,10.45825135]
[1731881719483,4.2597,234.76,234.69,10.45825135]
[1731881719682,4.2597,234.76,234.7,10.45825135]
[1731881719873,14.71735135,234.79,234.72,10.45825135]
[1731881720076,4.2591,234.79,234.72,10.45825135]
[1731881721488,10.45825135,234.78,234.69,4.2608]
[1731881721801,10.45825135,234.78,234.7,10.45825135]
[1731881722967,14.71765135,234.78,234.7,14.71885135]
[1731881723873,10.45825135,234.78,234.7,25.37065135]
[1731881724071,28.9475,234.83,234.74,10.45825135]
[1731881724072,14.71695135,234.82,234.74,10.45825135]
[1731881724291,4.2587,234.82,234.74,10.45825135]
[1731881724484,39.40575135,234.83,234.74,10.45825135]
[1731881724917,39.40575135,234.83,234.76,10.45825135]
[1731881725068,28.9475,234.83,234.76,10.45825135]
[1731881725774,8.2561,234.83,234.76,10.45825135]
[1731881726094,10.92013365,234.85,234.78,10.45825135]
[1731881727089,10.92013365,234.85,234.78,14.71745135]
[1731881727292,0.4618823,234.85,234.79,0.12549]
[1731881727569,0.4618823,234.85,234.79,10.58374135]
[1731881727970,0.4618823,234.85,234.72,10.45825135]
[1731881728170,10.45825135,234.77,234.68,21.11105135]
[1731881729197,14.71775135,234.77,234.68,25.37215135]
[1731881729401,14.71745135,234.79,234.69,0.09367462]
[1731881729581,14.71705135,234.81,234.71,10.45825135]
[1731881730778,14.71705135,234.81,234.72,4.2603]
[1731881730986,4.2588,234.81,234.71,10.45825135]
[1731881731184,10.45825135,234.8,234.71,10.45825135]
[1731881731791,4.2588,234.81,234.71,10.45825135]
[1731881731983,10.45825135,234.8,234.71,10.45825135]
[1731881732392,0.4618823,234.85,234.8,0.34465462]
[1731881732604,0.4618823,234.85,234.84,0.09367462]
[1731881732831,0.4618823,234.85,234.84,0.34465462]
[1731881733102,0.4618823,234.85,234.84,55.11158997]
[1731881733406,0.4618823,234.85,234.84,63.85128997]
[1731881733613,0.4618823,234.85,234.84,63.75128997]
[1731881734507,0.4618823,234.85,234.84,68.00948997]
[1731881735095,0.4618823,234.85,234.84,59.36978997]
[1731881736498,0.4618823,234.85,234.84,14.93561597]
[1731881736706,0.4618823,234.85,234.84,38.83798997]
[1731881737575,0.4618823,234.85,234.84,49.29624132]
[1731881739704,0.4618823,234.85,234.84,28.37973862]
[1731881739885,12.7913,235.01,234.85,0.12549]
[1731881740081,23.24955135,235.01,234.93,10.45825135]
[1731881740695,10.45825135,234.99,234.93,10.45825135]
[1731881741085,10.45825135,234.99,234.93,14.71475135]
[1731881741388,12.7913,235.01,234.93,14.71475135]
[1731881741687,0.1,235.07,234.95,0.09367462]
[1731881741688,8.6876,235.06,234.95,0.09367462]
[1731881741896,0.4618823,235.08,235.05,10.45825135]
[1731881742206,4.7158823,235.08,235.05,10.45825135]
[1731881742803,0.4618823,235.08,234.95,23.87055862]
[1731881742995,8.6876,235.18,235.08,0.12549]
[1731881743306,8.6876,235.18,235.15,10.45825135]
[1731881743491,14.70965135,235.22,235.1,0.21916462]
[1731881743698,14.70965135,235.22,235.16,10.45825135]
[1731881744005,4.2514,235.22,235.16,10.45825135]
[1731881744214,8.6876,235.24,235.1,0.21916462]
[1731881744391,8.6876,235.24,235.22,16.66229101]
[1731881744598,51.6665755,235.25,235.22,16.66229101]
[1731881744885,51.6665755,235.25,235.2,16.66229101]
[1731881744886,51.6665755,235.25,235.24,16.66229101]
[1731881745813,51.6665755,235.25,235.24,16.88145563]
[1731881746187,51.6665755,235.25,235.21,0.12549]
[1731881746499,51.6665755,235.25,235.24,16.66229101]
[1731881748105,51.6665755,235.25,235.23,16.66229101]
[1731881748307,51.6665755,235.25,235.22,16.66229101]
[1731881748504,51.6665755,235.25,235.24,16.66229101]
[1731881750321,51.6665755,235.25,235.24,16.78778101]
[1731881750731,16.66229101,235.33,235.24,16.78778101]
[1731881750732,0.1,235.39,235.24,16.78778101]
[1731881751016,16.66229101,235.34,235.26,16.66229101]
[1731881751209,16.66229101,235.34,235.27,16.78778101]
[1731881751394,16.66229101,235.37,235.29,16.66229101]
[1731881752204,0.069967,235.37,235.31,16.66229101]
[1731881752386,0.069967,235.37,235.33,16.66229101]
[1731881752788,0.069967,235.37,235.35,16.66229101]
[1731881753117,0.069967,235.37,235.36,16.66229101]
[1731881753905,0.069967,235.37,235.36,17.00694563]
[1731881755617,0.1,235.59,235.38,24.027864]
[1731881755798,16.66229101,235.5,235.43,16.66229101]
[1731881756109,16.66229101,235.53,235.46,16.66229101]
[1731881756324,16.66229101,235.53,235.38,0.12549]
[1731881756325,16.66229101,235.56,235.48,16.66229101]
[1731881756611,4.2448,235.58,235.39,0.21916462]
[1731881756612,16.66229101,235.57,235.49,16.66229101]
[1731881756811,20.90709101,235.58,235.51,16.66229101]
[1731881756999,0.5093155,235.61,235.55,16.66229101]
[1731881757202,4.2445,235.6,235.55,16.66229101]
[1731881757624,3.7445,235.6,235.55,16.66229101]
[1731881757798,0.5093155,235.61,235.58,16.66229101]
[1731881758318,0.5093155,235.61,235.6,40.69015501]
[1731881758493,0.5093155,235.61,235.6,40.78382963]
[1731881758690,0.5093155,235.61,235.6,24.12153862]
[1731881759006,0.5093155,235.61,235.6,40.88382963]
[1731881759316,16.66229101,235.75,235.61,24.12153862]
[1731881759523,8.3,235.79,235.72,16.66229101]
[1731881759818,16.66229101,235.77,235.69,0.12549]
[1731881760021,16.66229101,235.77,235.69,16.78778101]
[1731881761197,16.66229101,235.7,235.61,40.56466501]
[1731881761394,16.66229101,235.66,235.59,16.66229101]
[1731881761603,14.8443,235.78,235.65,16.66229101]
[1731881761909,16.66229101,235.75,235.67,16.66229101]
[1731881762102,14.9443,235.78,235.58,0.09367462]
[1731881762103,16.66229101,235.73,235.65,16.66229101]
[1731881762305,16.66229101,235.74,235.65,16.66229101]
[1731881762706,16.66229101,235.74,235.67,16.66229101]
[1731881762923,16.66229101,235.74,235.59,10.7116]
[1731881762924,16.66229101,235.7,235.62,16.66229101]
[1731881763143,16.66229101,235.66,235.58,16.66229101]
[1731881763298,4.342,235.74,235.53,10.6141]
[1731881763299,16.66229101,235.64,235.56,16.66229101]
[1731881764203,20.90609101,235.64,235.56,16.66229101]
[1731881764604,4.2421,235.73,235.53,14.8596]
[1731881764809,16.66229101,235.69,235.62,16.66229101]
[1731881765302,16.66229101,235.71,235.63,16.66229101]
[1731881765505,16.66229101,235.72,235.57,0.34465462]
[1731881765809,16.66229101,235.7,235.63,16.66229101]
[1731881766108,16.66229101,235.69,235.61,16.66229101]
[1731881766316,4.2425,235.71,235.64,16.66229101]
[1731881767626,4.2425,235.71,235.67,16.66229101]
[1731881767921,4.2425,235.71,235.65,16.66229101]
[1731881769104,4.2414,235.77,235.68,16.66229101]
[1731881769307,16.66229101,235.74,235.66,16.66229101]
[1731881769708,4.2414,235.77,235.67,16.66229101]
[1731881770033,12.541,235.79,235.65,0.25098]
[1731881770211,12.541,235.79,235.62,14.8542]
[1731881770534,16.66229101,235.76,235.68,16.66229101]
[1731881770701,12.541,235.79,235.64,16.66229101]
[1731881770702,16.66229101,235.71,235.64,16.66229101]
[1731881771607,16.66229101,235.71,235.53,21.3282]
[1731881771608,16.66229101,235.7,235.62,16.66229101]
[1731881771797,16.66229101,235.64,235.57,10.6122]
[1731881772002,16.66229101,235.65,235.57,27.27449101]
[1731881772615,16.66229101,235.65,235.55,4.2453]
[1731881772616,20.90629101,235.63,235.55,16.66229101]
[1731881772843,20.90629101,235.63,235.56,16.66229101]
[1731881773128,16.66229101,235.58,235.51,10.6149]
[1731881773638,16.66229101,235.58,235.5,16.66229101]
[1731881774506,16.66229101,235.53,235.46,10.6174]
[1731881774813,16.66229101,235.53,235.46,16.66229101]
[1731881775131,16.66229101,235.55,235.48,16.66229101]
[1731881775339,16.66229101,235.55,235.46,16.66229101]
[1731881775631,16.66229101,235.53,235.44,4.2472]
[1731881775927,16.66229101,235.51,235.43,16.66229101]
[1731881776119,16.66229101,235.49,235.43,16.66229101]
[1731881776504,16.66229101,235.51,235.43,16.66229101]
[1731881776709,16.66229101,235.46,235.38,16.66229101]
[1731881777030,16.66229101,235.42,235.34,16.66229101]
[1731881777731,16.66229101,235.46,235.36,16.66229101]
[1731881777915,20.90929101,235.46,235.36,20.91099101]
[1731881778614,16.66229101,235.48,235.4,16.66229101]
[1731881779205,16.66229101,235.48,235.36,14.8707]
[1731881779206,20.90859101,235.5,235.42,16.66229101]
[1731881779406,16.66229101,235.52,235.44,16.66229101]
[1731881779628,16.66229101,235.48,235.4,16.66229101]
[1731881780007,16.66229101,235.48,235.4,31.53039101]
[1731881781108,0.1,235.61,235.47,16.66229101]
[1731881781315,16.66229101,235.58,235.49,16.66229101]
[1731881781732,16.66229101,235.6,235.52,16.66229101]
[1731881782226,16.66229101,235.66,235.58,16.66229101]
[1731881783535,16.66229101,235.68,235.6,16.66229101]
[1731881783714,16.66229101,235.62,235.52,31.52289101]
[1731881784036,16.66229101,235.62,235.54,16.66229101]
[1731881784332,0.1,235.7,235.46,0.1]
[1731881784333,26.99711356,235.58,235.48,26.99711356]
[1731881784632,26.99711356,235.62,235.54,26.99711356]
[1731881785906,26.99711356,235.62,235.54,31.24251356]
[1731881786505,26.99711356,235.62,235.54,10.6139]
[1731881786717,26.99711356,235.56,235.49,10.6161]
[1731881786912,4.2432,235.67,235.53,26.99711356]
[1731881786913,26.99711356,235.61,235.53,26.99711356]
[1731881787110,26.99711356,235.63,235.55,26.99711356]
[1731881788418,26.99711356,235.63,235.55,31.24231356]
[1731881788741,26.99711356,235.61,235.53,37.61111356]
[1731881788944,26.99711356,235.59,235.53,10.614]
[1731881789422,26.99711356,235.57,235.49,27.12260356]
[1731881789609,26.99711356,235.57,235.49,31.36900356]
[1731881789938,31.24051356,235.66,235.56,26.99711356]
[1731881790136,26.99711356,235.66,235.58,26.99711356]
[1731881790314,26.99711356,235.66,235.59,4.2446]
[1731881790714,26.99711356,235.66,235.59,14.8562]
[1731881791336,26.99711356,235.68,235.6,26.99711356]
[1731881792130,26.99711356,235.7,235.62,26.99711356]
[1731881792353,26.99711356,235.72,235.64,26.99711356]
[1731881792636,26.99711356,235.7,235.64,4.2437]
[1731881793010,26.99711356,235.72,235.64,41.85021356]
[1731881793433,26.99711356,235.7,235.64,14.8531]
[1731881793938,26.99711356,235.65,235.5,4.2462]
[1731881794117,26.99711356,235.6,235.52,26.99711356]
[1731881794435,26.99711356,235.62,235.53,4.2457]
[1731881794625,26.99711356,235.64,235.54,26.99711356]
[1731881795621,26.99711356,235.64,235.55,0.12549]
[1731881795826,26.99711356,235.64,235.56,41.85531356]
[1731881796036,26.99711356,235.66,235.58,26.99711356]
[1731881796740,26.99711356,235.66,235.57,0.25098]
[1731881796937,26.99711356,235.66,235.57,24.027864]
[1731881797140,26.99711356,235.66,235.58,14.8569]
[1731881797317,26.99711356,235.62,235.58,14.8569]
[1731881798114,26.99711356,235.6,235.48,26.99711356]
[1731881798321,26.99711356,235.56,235.48,26.99711356]
[1731881799148,26.99711356,235.54,235.47,14.8638]
[1731881799842,26.99711356,235.58,235.48,26.99711356]
[1731881800014,4.2439,235.63,235.48,26.99711356]
[1731881800340,26.99711356,235.5,235.37,0.1]
[1731881800543,26.99711356,235.5,235.41,26.99711356]
[1731881801047,26.99711356,235.46,235.37,26.99711356]
[1731881801417,26.99711356,235.46,235.38,14.8695]
[1731881802739,26.99711356,235.48,235.39,27.12260356]
[1731881803623,26.99711356,235.48,235.4,4.248]
[1731881803845,26.99711356,235.48,235.4,14.8682]
[1731881804019,4.2463,235.5,235.4,14.8682]
[1731881804020,26.99711356,235.46,235.4,14.8682]
[1731881805152,26.99711356,235.44,235.4,10.6202]
[1731881806128,26.99711356,235.41,235.35,10.6222]
[1731881806425,16.6481331,235.36,235.3,10.6245]
[1731881806624,16.6481331,235.32,235.19,16.6481331]
[1731881806836,16.6481331,235.27,235.19,16.6481331]
[1731881807037,16.6481331,235.27,235.2,14.8809]
[1731881807231,16.6481331,235.26,235.2,14.8809]
[1731881807724,16.6481331,235.28,235.21,16.6481331]
[1731881808237,27.06842051,235.29,235.21,27.16209513]
[1731881808437,27.06842051,235.33,235.25,27.06842051]
[1731881809152,27.06842051,235.33,235.26,14.8771]
[1731881809328,27.06842051,235.33,235.27,0.25098]
[1731881810228,27.06842051,235.39,235.31,27.06842051]
[1731881810546,27.06842051,235.41,235.34,0.22099]
[1731881810929,27.06842051,235.41,235.32,0.21916462]
[1731881811146,27.06842051,235.41,235.32,0.12549]
[1731881811540,27.06842051,235.41,235.28,46.5094]
[1731881811541,27.06842051,235.35,235.28,46.5094]
[1731881812261,27.06842051,235.33,235.28,14.8758]
[1731881812426,27.06842051,235.44,235.29,27.19391051]
[1731881812629,27.06842051,235.41,235.33,27.06842051]
[1731881812847,27.06842051,235.41,235.29,0.12549]
[1731881812848,27.06842051,235.39,235.31,27.06842051]
[1731881813156,27.06842051,235.41,235.33,27.06842051]
[1731881813660,27.06842051,235.35,235.29,0.25098]
[1731881813850,4.2468,235.47,235.29,27.31940051]
[1731881813851,27.06842051,235.37,235.29,27.31940051]
[1731881814564,27.06842051,235.37,235.3,14.8745]
[1731881814737,27.06842051,235.35,235.3,14.8745]
[1731881816236,27.06842051,235.35,235.3,10.6247]
[1731881816536,4.2483,235.39,235.32,0.09367462]
[1731881816537,27.06842051,235.39,235.32,0.09367462]
[1731881816744,27.06842051,235.43,235.36,0.25098]
[1731881817960,27.06842051,235.43,235.37,14.8701]
[1731881818644,27.06842051,235.41,235.37,10.6215]
[1731881818849,27.06842051,235.39,235.31,27.06842051]
[1731881819048,27.06842051,235.37,235.32,14.8732]
[1731881819646,27.06842051,235.39,235.32,14.8732]
[1731881819967,27.06842051,235.39,235.32,10.6238]
[1731881820944,27.06842051,235.37,235.32,10.6238]
[1731881821131,27.06842051,235.41,235.33,27.06842051]
[1731881821965,27.06842051,235.37,235.29,27.06842051]
[1731881822548,27.06842051,235.41,235.33,27.06842051]
[1731881823367,27.06842051,235.39,235.33,27.06842051]
[1731881823542,27.06842051,235.39,235.34,4.2491]
[1731881824660,27.06842051,235.39,235.32,10.6235]
[1731881824661,27.06842051,235.37,235.32,14.873]
[1731881825539,27.06842051,235.39,235.32,14.873]
[1731881826060,27.06842051,235.39,235.31,26.94142051]
[1731881827468,27.06842051,235.35,235.27,27.06842051]
[1731881827638,4.2475,235.43,235.22,25.5079]
[1731881827639,27.06842051,235.36,235.29,27.06842051]
[1731881827964,27.06842051,235.36,235.27,27.06842051]
[1731881828465,27.06842051,235.38,235.29,27.06842051]
[1731881828637,27.06842051,235.38,235.31,27.06842051]
[1731881829052,27.06842051,235.38,235.32,14.8733]